Workbook

Sheet Start
C3: WHAT IF ANALYSIS
C6: Use the five year spreadsheet to produce a simple 'what if' analysis for your clients.
C9: Client Name | E9: Demonstration Limited
C19: Version 5.00 | D19: 2018-07-23

Sheet Pricing Policy
N1: WHAT IF ANALYSIS
C3: =Start!E9 -> Demonstration Limited
C4: "What If" Analysis
C5: Pricing Policy
D7: Product / Service Exisiting no. of units sold | F7: Average price per unit £ | H7: Existing Turnover £ | J7: Effect of price % increase | L7: Revised price per unit £ | N7: Revised Turnover £
C9: 1 | D9: 100000 | F9: 46 | H9: =F9*D9 -> 4600000 | J9: 8 | L9: =F9*J9/100+F9 -> 49.68 | N9: =L9*D9 -> 4968000
C11: 2 | D11: 5000 | F11: 15 | H11: =F11*D11 -> 75000 | J11: 4 | L11: =F11*J11/100+F11 -> 15.6 | N11: =L11*D11 -> 78000
C13: 3 | D13: 25000 | F13: 50 | H13: =F13*D13 -> 1250000 | J13: 14 | L13: 57 | N13: 1425000
C15: 4 | D15: 10000 | F15: 17 | H15: =F15*D15 -> 170000 | J15: 11 | L15: 18.87 | N15: 188700
C17: 5 | D17: 3000 | F17: 12.5 | H17: =F17*D17 -> 37500 | J17: 6 | L17: 13.25 | N17: 39750
F19: Total Turnover | H19: =SUM(H9:H17) -> 6132500 | I19: Revised Total Turnover | N19: =SUM(N9:N17) -> 6699450

Sheet No Units Sold
M1: WHAT IF ANALYSIS
B3: =Start!E9 -> Demonstration Limited
B4: "What If" Analysis
B5: No of Units Sold
C7: Product / Service Existing no. of units sold | E7: Average price per unit £ | G7: Existing Turnover £ | I7: Effect of additional units | K7: Revised no. of units sold | M7: Revised Turnover £
E8: 0
B9: 1 | C9: ='Pricing Policy'!D9 -> 100000 | E9: ='Pricing Policy'!L9 -> 49.68 | G9: =E9*C9 -> 4968000 | I9: 127 | K9: =C9+I9 -> 100127 | M9: =K9*E9 -> 4974309.36
B11: 2 | C11: ='Pricing Policy'!D11 -> 5000 | E11: ='Pricing Policy'!L11 -> 15.6 | G11: =E11*C11 -> 78000 | I11: 73 | K11: =C11+I11 -> 5073 | M11: =K11*E11 -> 79138.8
B13: 3 | C13: ='Pricing Policy'!D13 -> 25000 | E13: ='Pricing Policy'!L13 -> 57 | G13: =E13*C13 -> 1425000 | I13: 0 | K13: 25000 | M13: 1425000
B15: 4 | C15: ='Pricing Policy'!D15 -> 10000 | E15: ='Pricing Policy'!L15 -> 18.87 | G15: =E15*C15 -> 188700 | I15: 5 | K15: 10005 | M15: 188794.35
B17: 5 | C17: ='Pricing Policy'!D17 -> 3000 | E17: ='Pricing Policy'!L17 -> 13.25 | G17: =E17*C17 -> 39750 | I17: 4 | K17: 3004 | M17: 39803
E19: Total Turnover | G19: =SUM(G9:G17) -> 6699450 | I19: Revised Total Turnover | M19: =SUM(M9:M17) -> 6707045.51

Sheet list (2) (hidden)
A1: 1 | B1: 1 | D1: 1 | F1: =D1-B1 -> 0 | H1: 2000-06-01
A2: 2 | B2: 1.5 | D2: 2 | F2: 0.5 | H2: 2000-06-02
A3: 3 | B3: 2 | D3: 3 | F3: 1 | H3: 2000-06-03
A4: 4 | B4: 2.5 | D4: 4 | F4: 1.5 | H4: 2000-06-04
A5: 5 | B5: 3 | D5: 5 | F5: 2 | H5: 2000-06-05
A6: 6 | B6: 3.5 | D6: 6 | F6: 2.5 | H6: 2000-06-06
A7: 7 | B7: 4 | D7: 7 | F7: 3 | H7: 2000-06-07
A8: 8 | B8: 4.5 | D8: 8 | F8: 3.5 | H8: 2000-06-08
A9: 9 | B9: 5 | D9: 9 | F9: 4 | H9: 2000-06-09
A10: 10 | B10: 5.5 | D10: 10 | F10: 4.5 | H10: 2000-06-10
A11: 11 | B11: 6 | D11: 11 | F11: 5 | H11: 2000-06-11
A12: 12 | B12: 6.5 | D12: 12 | F12: 5.5 | H12: 2000-06-12
A13: 13 | B13: 7 | D13: 13 | F13: 6 | H13: 2000-06-13
A14: 14 | B14: 7.5 | D14: 14 | F14: 6.5 | H14: 2000-06-14
A15: 15 | B15: 8 | D15: 15 | F15: 7 | H15: 2000-06-15
A16: 16 | B16: 8.5 | D16: 16 | F16: 7.5 | H16: 2000-06-16
A17: 17 | B17: 9 | D17: 17 | F17: 8 | H17: 2000-06-17
A18: 18 | B18: 9.5 | D18: 18 | F18: 8.5 | H18: 2000-06-18
A19: 19 | B19: 10 | D19: 19 | F19: 9 | H19: 2000-06-19
A20: 20 | B20: 10.5 | D20: 20 | F20: 9.5 | H20: 2000-06-20
A21: 21 | B21: 11 | D21: 21 | F21: 10 | H21: 2000-06-21
A22: 22 | B22: 11.5 | D22: 22 | F22: 10.5 | H22: 2000-06-22
A23: 23 | B23: 12 | D23: 23 | F23: 11 | H23: 2000-06-23
A24: 24 | B24: 12.5 | D24: 24 | F24: 11.5 | H24: 2000-06-24
A25: 25 | B25: 13 | D25: 25 | F25: 12 | H25: 2000-06-25
A26: 26 | B26: 13.5 | D26: 26 | F26: 12.5 | H26: 2000-06-26
A27: 27 | B27: 14 | D27: 27 | F27: 13 | H27: 2000-06-27
A28: 28 | B28: 14.5 | D28: 28 | F28: 13.5 | H28: 2000-06-28
A29: 29 | B29: 15 | D29: 29 | F29: 14 | H29: 2000-06-29
A30: 30 | B30: 15.5 | D30: 30 | F30: 14.5 | H30: 2000-06-30
A31: 31 | B31: 16 | D31: 31 | F31: 15 | H31: 2000-07-01
A32: 32 | B32: 16.5 | D32: 32 | F32: 15.5 | H32: 2000-07-02
A33: 33 | B33: 17 | D33: 33 | F33: 16 | H33: 2000-07-03
A34: 34 | B34: 17.5 | D34: 34 | F34: 16.5 | H34: 2000-07-04
A35: 35 | B35: 18 | D35: 35 | F35: 17 | H35: 2000-07-05
A36: 36 | B36: 18.5 | D36: 36 | F36: 17.5 | H36: 2000-07-06
A37: 37 | B37: 19 | D37: 37 | F37: 18 | H37: 2000-07-07
A38: 38 | B38: 19.5 | D38: 38 | F38: 18.5 | H38: 2000-07-08
A39: 39 | B39: 20 | D39: 39 | F39: 19 | H39: 2000-07-09
A40: 40 | B40: 20.5 | D40: 40 | F40: 19.5 | H40: 2000-07-10
A41: 41 | B41: 21 | D41: 41 | F41: 20 | H41: 2000-07-11
A42: 42 | B42: 21.5 | D42: 42 | F42: 20.5 | H42: 2000-07-12
A43: 43 | B43: 22 | D43: 43 | F43: 21 | H43: 2000-07-13
A44: 44 | B44: 22.5 | D44: 44 | F44: 21.5 | H44: 2000-07-14
A45: 45 | B45: 23 | D45: 45 | F45: 22 | H45: 2000-07-15
A46: 46 | B46: 23.5 | D46: 46 | F46: 22.5 | H46: 2000-07-16
A47: 47 | B47: 24 | D47: 47 | F47: 23 | H47: 2000-07-17
A48: 48 | B48: 24.5 | D48: 48 | F48: 23.5 | H48: 2000-07-18
A49: 49 | B49: 25 | D49: 49 | F49: 24 | H49: 2000-07-19
A50: 50 | B50: 25.5 | D50: 50 | F50: 24.5 | H50: 2000-07-20
A51: 51 | B51: 26 | D51: 51 | F51: 25 | H51: 2000-07-21
A52: 52 | B52: 26.5 | D52: 52 | F52: 25.5 | H52: 2000-07-22
A53: 53 | B53: 27 | D53: 53 | F53: 26 | H53: 2000-07-23
A54: 54 | B54: 27.5 | D54: 54 | F54: 26.5 | H54: 2000-07-24
A55: 55 | B55: 28 | D55: 55 | F55: 27 | H55: 2000-07-25
A56: 56 | B56: 28.5 | D56: 56 | F56: 27.5 | H56: 2000-07-26
A57: 57 | B57: 29 | D57: 57 | F57: 28 | H57: 2000-07-27
A58: 58 | B58: 29.5 | D58: 58 | F58: 28.5 | H58: 2000-07-28
A59: 59 | B59: 30 | D59: 59 | F59: 29 | H59: 2000-07-29
A60: 60 | B60: 30.5 | D60: 60 | F60: 29.5 | H60: 2000-07-30
A61: 61 | B61: 31 | D61: 61 | F61: 30 | H61: 2000-07-31
A62: 62 | B62: 31.5 | D62: 62 | F62: 30.5 | H62: 2000-08-01
A63: 63 | B63: 32 | D63: 63 | F63: 31 | H63: 2000-08-02
A64: 64 | B64: 32.5 | D64: 64 | F64: 31.5 | H64: 2000-08-03
A65: 65 | B65: 33 | D65: 65 | F65: =D65-B65 -> 32 | H65: 2000-08-04
A66: 66 | B66: 33.5 | D66: 66 | F66: 32.5 | H66: 2000-08-05
A67: 67 | B67: 34 | D67: 67 | F67: 33 | H67: 2000-08-06
A68: 68 | B68: 34.5 | D68: 68 | F68: 33.5 | H68: 2000-08-07
A69: 69 | B69: 35 | D69: 69 | F69: 34 | H69: 2000-08-08
A70: 70 | B70: 35.5 | D70: 70 | F70: 34.5 | H70: 2000-08-09
A71: 71 | B71: 36 | D71: 71 | F71: 35 | H71: 2000-08-10
A72: 72 | B72: 36.5 | D72: 72 | F72: 35.5 | H72: 2000-08-11
A73: 73 | B73: 37 | D73: 73 | F73: 36 | H73: 2000-08-12
A74: 74 | B74: 37.5 | D74: 74 | F74: 36.5 | H74: 2000-08-13
A75: 75 | B75: 38 | D75: 75 | F75: 37 | H75: 2000-08-14
A76: 76 | B76: 38.5 | D76: 76 | F76: 37.5 | H76: 2000-08-15
A77: 77 | B77: 39 | D77: 77 | F77: 38 | H77: 2000-08-16
A78: 78 | B78: 39.5 | D78: 78 | F78: 38.5 | H78: 2000-08-17
A79: 79 | B79: 40 | D79: 79 | F79: 39 | H79: 2000-08-18
A80: 80 | B80: 40.5 | D80: 80 | F80: 39.5 | H80: 2000-08-19
A81: 81 | B81: 41 | D81: 81 | F81: 40 | H81: 2000-08-20
A82: 82 | B82: 41.5 | D82: 82 | F82: 40.5 | H82: 2000-08-21
A83: 83 | B83: 42 | D83: 83 | F83: 41 | H83: 2000-08-22
A84: 84 | B84: 42.5 | D84: 84 | F84: 41.5 | H84: 2000-08-23
A85: 85 | B85: 43 | D85: 85 | F85: 42 | H85: 2000-08-24
A86: 86 | B86: 43.5 | D86: 86 | F86: 42.5 | H86: 2000-08-25
A87: 87 | B87: 44 | D87: 87 | F87: 43 | H87: 2000-08-26
A88: 88 | B88: 44.5 | D88: 88 | F88: 43.5 | H88: 2000-08-27
A89: 89 | B89: 45 | D89: 89 | F89: 44 | H89: 2000-08-28
A90: 90 | B90: 45.5 | D90: 90 | F90: 44.5 | H90: 2000-08-29
A91: 91 | B91: 46 | D91: 91 | F91: 45 | H91: 2000-08-30
A92: 92 | B92: 46.5 | D92: 92 | F92: 45.5 | H92: 2000-08-31
A93: 93 | B93: 47 | D93: 93 | F93: 46 | H93: 2000-09-01
A94: 94 | B94: 47.5 | D94: 94 | F94: 46.5 | H94: 2000-09-02
A95: 95 | B95: 48 | D95: 95 | F95: 47 | H95: 2000-09-03
A96: 96 | B96: 48.5 | D96: 96 | F96: 47.5 | H96: 2000-09-04
A97: 97 | B97: 49 | D97: 97 | F97: 48 | H97: 2000-09-05
A98: 98 | B98: 49.5 | D98: 98 | F98: 48.5 | H98: 2000-09-06
A99: 99 | B99: 50 | D99: 99 | F99: 49 | H99: 2000-09-07
A100: 100 | B100: 50.5 | D100: 100 | F100: 49.5 | H100: 2000-09-08
A101: 101 | B101: 51 | D101: 101 | F101: 50 | H101: 2000-09-09
A102: 102 | B102: 51.5 | D102: 102 | F102: 50.5 | H102: 2000-09-10
A103: 103 | B103: 52 | D103: 103 | F103: 51 | H103: 2000-09-11
A104: 104 | B104: 52.5 | D104: 104 | F104: 51.5 | H104: 2000-09-12
A105: 105 | B105: 53 | D105: 105 | F105: 52 | H105: 2000-09-13
A106: 106 | B106: 53.5 | D106: 106 | F106: 52.5 | H106: 2000-09-14
A107: 107 | B107: 54 | D107: 107 | F107: 53 | H107: 2000-09-15
A108: 108 | B108: 54.5 | D108: 108 | F108: 53.5 | H108: 2000-09-16
A109: 109 | B109: 55 | D109: 109 | F109: 54 | H109: 2000-09-17
A110: 110 | B110: 55.5 | D110: 110 | F110: 54.5 | H110: 2000-09-18
A111: 111 | B111: 56 | D111: 111 | F111: 55 | H111: 2000-09-19
A112: 112 | B112: 56.5 | D112: 112 | F112: 55.5 | H112: 2000-09-20
A113: 113 | B113: 57 | D113: 113 | F113: 56 | H113: 2000-09-21
A114: 114 | B114: 57.5 | D114: 114 | F114: 56.5 | H114: 2000-09-22
A115: 115 | B115: 58 | D115: 115 | F115: 57 | H115: 2000-09-23
A116: 116 | B116: 58.5 | D116: 116 | F116: 57.5 | H116: 2000-09-24
A117: 117 | B117: 59 | D117: 117 | F117: 58 | H117: 2000-09-25
A118: 118 | B118: 59.5 | D118: 118 | F118: 58.5 | H118: 2000-09-26
A119: 119 | B119: 60 | D119: 119 | F119: 59 | H119: 2000-09-27
A120: 120 | B120: 60.5 | D120: 120 | F120: 59.5 | H120: 2000-09-28
A121: 121 | B121: 61 | D121: 121 | F121: 60 | H121: 2000-09-29
A122: 122 | B122: 61.5 | D122: 122 | F122: 60.5 | H122: 2000-09-30
A123: 123 | B123: 62 | D123: 123 | F123: 61 | H123: 2000-10-01
A124: 124 | B124: 62.5 | D124: 124 | F124: 61.5 | H124: 2000-10-02
A125: 125 | B125: 63 | D125: 125 | F125: 62 | H125: 2000-10-03
A126: 126 | B126: 63.5 | D126: 126 | F126: 62.5 | H126: 2000-10-04
A127: 127 | B127: 64 | D127: 127 | F127: 63 | H127: 2000-10-05
A128: 128 | B128: 64.5 | D128: 128 | F128: 63.5 | H128: 2000-10-06
A129: 129 | B129: 65 | D129: 129 | F129: =D129-B129 -> 64 | H129: 2000-10-07
A130: 130 | B130: 65.5 | D130: 130 | F130: 64.5 | H130: 2000-10-08
A131: 131 | B131: 66 | D131: 131 | F131: 65 | H131: 2000-10-09
A132: 132 | B132: 66.5 | D132: 132 | F132: 65.5 | H132: 2000-10-10
A133: 133 | B133: 67 | D133: 133 | F133: 66 | H133: 2000-10-11
A134: 134 | B134: 67.5 | D134: 134 | F134: 66.5 | H134: 2000-10-12
A135: 135 | B135: 68 | D135: 135 | F135: 67 | H135: 2000-10-13
A136: 136 | B136: 68.5 | D136: 136 | F136: 67.5 | H136: 2000-10-14
A137: 137 | B137: 69 | D137: 137 | F137: 68 | H137: 2000-10-15
A138: 138 | B138: 69.5 | D138: 138 | F138: 68.5 | H138: 2000-10-16
A139: 139 | B139: 70 | D139: 139 | F139: 69 | H139: 2000-10-17
A140: 140 | B140: 70.5 | D140: 140 | F140: 69.5 | H140: 2000-10-18
A141: 141 | B141: 71 | D141: 141 | F141: 70 | H141: 2000-10-19
A142: 142 | B142: 71.5 | D142: 142 | F142: 70.5 | H142: 2000-10-20
A143: 143 | B143: 72 | D143: 143 | F143: 71 | H143: 2000-10-21
A144: 144 | B144: 72.5 | D144: 144 | F144: 71.5 | H144: 2000-10-22
A145: 145 | B145: 73 | D145: 145 | F145: 72 | H145: 2000-10-23
A146: 146 | B146: 73.5 | D146: 146 | F146: 72.5 | H146: 2000-10-24
A147: 147 | B147: 74 | D147: 147 | F147: 73 | H147: 2000-10-25
A148: 148 | B148: 74.5 | D148: 148 | F148: 73.5 | H148: 2000-10-26
A149: 149 | B149: 75 | D149: 149 | F149: 74 | H149: 2000-10-27
A150: 150 | B150: 75.5 | D150: 150 | F150: 74.5 | H150: 2000-10-28
A151: 151 | B151: 76 | D151: 151 | F151: 75 | H151: 2000-10-29
A152: 152 | B152: 76.5 | D152: 152 | F152: 75.5 | H152: 2000-10-30
A153: 153 | B153: 77 | D153: 153 | F153: 76 | H153: 2000-10-31
A154: 154 | B154: 77.5 | D154: 154 | F154: 76.5 | H154: 2000-11-01
A155: 155 | B155: 78 | D155: 155 | F155: 77 | H155: 2000-11-02
A156: 156 | B156: 78.5 | D156: 156 | F156: 77.5 | H156: 2000-11-03
A157: 157 | B157: 79 | D157: 157 | F157: 78 | H157: 2000-11-04
A158: 158 | B158: 79.5 | D158: 158 | F158: 78.5 | H158: 2000-11-05
A159: 159 | B159: 80 | D159: 159 | F159: 79 | H159: 2000-11-06
A160: 160 | B160: 80.5 | D160: 160 | F160: 79.5 | H160: 2000-11-07
A161: 161 | B161: 81 | D161: 161 | F161: 80 | H161: 2000-11-08
A162: 162 | B162: 81.5 | D162: 162 | F162: 80.5 | H162: 2000-11-09
A163: 163 | B163: 82 | D163: 163 | F163: 81 | H163: 2000-11-10
A164: 164 | B164: 82.5 | D164: 164 | F164: 81.5 | H164: 2000-11-11
A165: 165 | B165: 83 | D165: 165 | F165: 82 | H165: 2000-11-12
A166: 166 | B166: 83.5 | D166: 166 | F166: 82.5 | H166: 2000-11-13
A167: 167 | B167: 84 | D167: 167 | F167: 83 | H167: 2000-11-14
A168: 168 | B168: 84.5 | D168: 168 | F168: 83.5 | H168: 2000-11-15
A169: 169 | B169: 85 | D169: 169 | F169: 84 | H169: 2000-11-16
A170: 170 | B170: 85.5 | D170: 170 | F170: 84.5 | H170: 2000-11-17
A171: 171 | B171: 86 | D171: 171 | F171: 85 | H171: 2000-11-18
A172: 172 | B172: 86.5 | D172: 172 | F172: 85.5 | H172: 2000-11-19
A173: 173 | B173: 87 | D173: 173 | F173: 86 | H173: 2000-11-20
A174: 174 | B174: 87.5 | D174: 174 | F174: 86.5 | H174: 2000-11-21
A175: 175 | B175: 88 | D175: 175 | F175: 87 | H175: 2000-11-22
A176: 176 | B176: 88.5 | D176: 176 | F176: 87.5 | H176: 2000-11-23
A177: 177 | B177: 89 | D177: 177 | F177: 88 | H177: 2000-11-24
A178: 178 | B178: 89.5 | D178: 178 | F178: 88.5 | H178: 2000-11-25
A179: 179 | B179: 90 | D179: 179 | F179: 89 | H179: 2000-11-26
A180: 180 | B180: 90.5 | D180: 180 | F180: 89.5 | H180: 2000-11-27
A181: 181 | B181: 91 | D181: 181 | F181: 90 | H181: 2000-11-28
A182: 182 | B182: 91.5 | D182: 182 | F182: 90.5 | H182: 2000-11-29
A183: 183 | B183: 92 | D183: 183 | F183: 91 | H183: 2000-11-30
A184: 184 | B184: 92.5 | D184: 184 | F184: 91.5 | H184: 2000-12-01
A185: 185 | B185: 93 | D185: 185 | F185: 92 | H185: 2000-12-02
A186: 186 | B186: 93.5 | D186: 186 | F186: 92.5 | H186: 2000-12-03
A187: 187 | B187: 94 | D187: 187 | F187: 93 | H187: 2000-12-04
A188: 188 | B188: 94.5 | D188: 188 | F188: 93.5 | H188: 2000-12-05
A189: 189 | B189: 95 | D189: 189 | F189: 94 | H189: 2000-12-06
A190: 190 | B190: 95.5 | D190: 190 | F190: 94.5 | H190: 2000-12-07
A191: 191 | B191: 96 | D191: 191 | F191: 95 | H191: 2000-12-08
A192: 192 | B192: 96.5 | D192: 192 | F192: 95.5 | H192: 2000-12-09
A193: 193 | B193: 97 | D193: 193 | F193: =D193-B193 -> 96 | H193: 2000-12-10
A194: 194 | B194: 97.5 | D194: 194 | F194: 96.5 | H194: 2000-12-11
A195: 195 | B195: 98 | D195: 195 | F195: 97 | H195: 2000-12-12
A196: 196 | B196: 98.5 | D196: 196 | F196: 97.5 | H196: 2000-12-13
A197: 197 | B197: 99 | D197: 197 | F197: 98 | H197: 2000-12-14
A198: 198 | B198: 99.5 | D198: 198 | F198: 98.5 | H198: 2000-12-15
A199: 199 | B199: 100 | D199: 199 | F199: 99 | H199: 2000-12-16
A200: 200 | B200: 100.5 | D200: 200 | F200: 99.5 | H200: 2000-12-17
... 379 more rows

Sheet list (hidden)
A1: 0 | C1: 0 | E1: 0 | G1: 1
A2: 1 | C2: 1 | E2: 1 | G2: 2 | H2: 1
A3: 2 | C3: 2 | E3: 1.5 | G3: 3 | H3: 2
A4: 3 | C4: 3 | E4: 2 | G4: 4 | H4: 3 | J4: Service Sector
A5: 4 | C5: 4 | E5: 2.5 | G5: 5 | H5: 4 | J5: Retailer
A6: 5 | C6: 5 | E6: 3 | G6: 6 | H6: 5
A7: 6 | C7: 6 | E7: 3.5 | G7: 7 | H7: 6
A8: 7 | C8: 7 | E8: 4 | G8: 8 | H8: 7
A9: 8 | C9: 8 | E9: 4.5 | G9: 9 | H9: 8
A10: 9 | C10: 9 | E10: 5 | G10: 10 | H10: 9
A11: 10 | C11: 10 | E11: 5.5 | G11: 11 | H11: 10
A12: 11 | C12: 11 | E12: 6 | G12: 12 | H12: 11
A13: 12 | C13: 12 | E13: 6.5 | G13: 13 | H13: 12
A14: 13 | C14: 13 | E14: 7 | G14: 14 | H14: 13
A15: 14 | C15: 14 | E15: 7.5 | G15: 15 | H15: 14
A16: 15 | C16: 15 | E16: 8 | G16: 16 | H16: 15
A17: 16 | C17: 16 | E17: 8.5 | G17: 17 | H17: 16
A18: 17 | C18: 17 | E18: 9 | G18: 18 | H18: 17
A19: 18 | C19: 18 | E19: 9.5 | G19: 19 | H19: 18
A20: 19 | C20: 19 | E20: 10 | G20: 20 | H20: 19
A21: 20 | C21: 20 | E21: 10.5 | G21: 21 | H21: 20
A22: 21 | C22: 21 | E22: 11 | G22: 22 | H22: 21
A23: 22 | C23: 22 | E23: 11.5 | G23: 23 | H23: 22
A24: 23 | C24: 23 | E24: 12 | G24: 24 | H24: 23
A25: 24 | C25: 24 | E25: 12.5 | G25: 25 | H25: 24
A26: 25 | C26: 25 | E26: 13 | G26: 26 | H26: 25
A27: 26 | C27: 26 | E27: 13.5 | G27: 27 | H27: 26
A28: 27 | C28: 27 | E28: 14 | G28: 28 | H28: 27
A29: 28 | C29: 28 | E29: 14.5 | G29: 29 | H29: 28
A30: 29 | C30: 29 | E30: 15 | G30: 30 | H30: 29
A31: 30 | C31: 30 | E31: 15.5 | G31: 31 | H31: 30
A32: 31 | C32: 31 | E32: 16 | G32: 32 | H32: 31
A33: 32 | C33: 32 | E33: 16.5 | G33: 33 | H33: 32
A34: 33 | C34: 33 | E34: 17 | G34: 34 | H34: 33
A35: 34 | C35: 34 | E35: 17.5 | G35: 35 | H35: 34
A36: 35 | C36: 35 | E36: 18 | G36: 36 | H36: 35
A37: 36 | C37: 36 | E37: 18.5 | G37: 37 | H37: 36
A38: 37 | C38: 37 | E38: 19 | G38: 38 | H38: 37
A39: 38 | C39: 38 | E39: 19.5 | G39: 39 | H39: 38
A40: 39 | C40: 39 | E40: 20 | G40: 40 | H40: 39
A41: 40 | C41: 40 | E41: 20.5 | G41: 41 | H41: 40
A42: 41 | C42: 41 | E42: 21 | G42: 42 | H42: 41
A43: 42 | C43: 42 | E43: 21.5 | G43: 43 | H43: 42
A44: 43 | C44: 43 | E44: 22 | G44: 44 | H44: 43
A45: 44 | C45: 44 | E45: 22.5 | G45: 45 | H45: 44
A46: 45 | C46: 45 | E46: 23 | G46: 46 | H46: 45
A47: 46 | C47: 46 | E47: 23.5 | G47: 47 | H47: 46
A48: 47 | C48: 47 | E48: 24 | G48: 48 | H48: 47
A49: 48 | C49: 48 | E49: 24.5 | G49: 49 | H49: 48
A50: 49 | C50: 49 | E50: 25 | G50: 50 | H50: 49
A51: 50 | C51: 50 | E51: 25.5 | G51: 51 | H51: 50
A52: 51 | C52: 51 | E52: 26 | G52: 52 | H52: 51
A53: 52 | C53: 52 | E53: 26.5 | G53: 53 | H53: 52
A54: 53 | E54: 27 | G54: 54 | H54: 53
A55: 54 | E55: 27.5 | G55: 55 | H55: 54
A56: 55 | E56: 28 | G56: 56 | H56: 55
A57: 56 | E57: 28.5 | G57: 57 | H57: 56
A58: 57 | E58: 29 | G58: 58 | H58: 57
A59: 58 | E59: 29.5 | G59: 59 | H59: 58
A60: 59 | E60: 30 | G60: 60 | H60: 59
A61: 60 | E61: 30.5 | G61: 61 | H61: 60
A62: 61 | E62: 31 | G62: 62 | H62: 61
A63: 62 | E63: 31.5 | G63: 63 | H63: 62
A64: 63 | E64: 32 | G64: 64 | H64: 63
A65: 64 | E65: 32.5 | G65: 65 | H65: 64
A66: 65 | E66: 33 | G66: 66 | H66: 65
A67: 66 | E67: 33.5 | G67: 67 | H67: 66
A68: 67 | E68: 34 | G68: 68 | H68: 67
A69: 68 | E69: 34.5 | G69: 69 | H69: 68
A70: 69 | E70: 35 | G70: 70 | H70: 69
A71: 70 | E71: 35.5 | G71: 71 | H71: 70
A72: 71 | E72: 36 | G72: 72 | H72: 71
A73: 72 | E73: 36.5 | G73: 73 | H73: 72
A74: 73 | E74: 37 | G74: 74 | H74: 73
A75: 74 | E75: 37.5 | G75: 75 | H75: 74
A76: 75 | E76: 38 | G76: 76 | H76: 75
A77: 76 | E77: 38.5 | G77: 77 | H77: 76
A78: 77 | E78: 39 | G78: 78 | H78: 77
A79: 78 | E79: 39.5 | G79: 79 | H79: 78
A80: 79 | E80: 40 | G80: 80 | H80: 79
A81: 80 | E81: 40.5 | G81: 81 | H81: 80
A82: 81 | E82: 41 | G82: 82 | H82: 81
A83: 82 | E83: 41.5 | G83: 83 | H83: 82
A84: 83 | E84: 42 | G84: 84 | H84: 83
A85: 84 | E85: 42.5 | G85: 85 | H85: 84
A86: 85 | E86: 43 | G86: 86 | H86: 85
A87: 86 | E87: 43.5 | G87: 87 | H87: 86
A88: 87 | E88: 44 | G88: 88 | H88: 87
A89: 88 | E89: 44.5 | G89: 89 | H89: 88
A90: 89 | E90: 45 | G90: 90 | H90: 89
A91: 90 | E91: 45.5 | G91: 91 | H91: 90
A92: 91 | E92: 46 | G92: 92 | H92: 91
A93: 92 | E93: 46.5 | G93: 93 | H93: 92
A94: 93 | E94: 47 | G94: 94 | H94: 93
A95: 94 | E95: 47.5 | G95: 95 | H95: 94
A96: 95 | E96: 48 | G96: 96 | H96: 95
A97: 96 | E97: 48.5 | G97: 97 | H97: 96
A98: 97 | E98: 49 | G98: 98 | H98: 97
A99: 98 | E99: 49.5 | H99: 98
A100: 99 | E100: 50 | H100: 99
A101: 100 | E101: 50.5 | H101: 100
A102: 101 | E102: 51 | H102: 101
A103: 102 | E103: 51.5 | H103: 102
A104: 103 | E104: 52 | H104: 103
A105: 104 | E105: 52.5 | H105: 104
A106: 105 | E106: 53 | H106: 105
A107: 106 | E107: 53.5 | H107: 106
A108: 107 | E108: 54 | H108: 107
A109: 108 | E109: 54.5 | H109: 108
A110: 109 | E110: 55 | H110: 109
A111: 110 | E111: 55.5 | H111: 110
A112: 111 | E112: 56 | H112: 111
A113: 112 | E113: 56.5 | H113: 112
A114: 113 | E114: 57 | H114: 113
A115: 114 | E115: 57.5 | H115: 114
A116: 115 | E116: 58 | H116: 115
A117: 116 | E117: 58.5 | H117: 116
A118: 117 | E118: 59 | H118: 117
A119: 118 | E119: 59.5 | H119: 118
A120: 119 | E120: 60 | H120: 119
A121: 120 | E121: 60.5 | H121: 120
A122: 121 | E122: 61 | H122: 121
A123: 122 | E123: 61.5 | H123: 122
A124: 123 | E124: 62 | H124: 123
A125: 124 | E125: 62.5 | H125: 124
A126: 125 | E126: 63 | H126: 125
A127: 126 | E127: 63.5 | H127: 126
A128: 127 | E128: 64 | H128: 127
A129: 128 | E129: 64.5 | H129: 128
A130: 129 | E130: 65 | H130: 129
A131: 130 | E131: 65.5 | H131: 130
A132: 131 | E132: 66 | H132: 131
A133: 132 | E133: 66.5 | H133: 132
A134: 133 | E134: 67 | H134: 133
A135: 134 | E135: 67.5 | H135: 134
A136: 135 | E136: 68 | H136: 135
A137: 136 | E137: 68.5 | H137: 136
A138: 137 | E138: 69 | H138: 137
A139: 138 | E139: 69.5 | H139: 138
A140: 139 | E140: 70 | H140: 139
A141: 140 | E141: 70.5 | H141: 140
A142: 141 | E142: 71 | H142: 141
A143: 142 | E143: 71.5 | H143: 142
A144: 143 | E144: 72 | H144: 143
A145: 144 | E145: 72.5 | H145: 144
A146: 145 | E146: 73 | H146: 145
A147: 146 | E147: 73.5 | H147: 146
A148: 147 | E148: 74 | H148: 147
A149: 148 | E149: 74.5 | H149: 148
A150: 149 | E150: 75 | H150: 149
A151: 150 | E151: 75.5 | H151: 150
A152: 151 | E152: 76 | H152: 151
A153: 152 | E153: 76.5 | H153: 152
A154: 153 | E154: 77 | H154: 153
A155: 154 | E155: 77.5 | H155: 154
A156: 155 | E156: 78 | H156: 155
A157: 156 | E157: 78.5 | H157: 156
A158: 157 | E158: 79 | H158: 157
A159: 158 | E159: 79.5 | H159: 158
A160: 159 | E160: 80 | H160: 159
A161: 160 | E161: 80.5 | H161: 160
A162: 161 | E162: 81 | H162: 161
A163: 162 | E163: 81.5 | H163: 162
A164: 163 | E164: 82 | H164: 163
A165: 164 | E165: 82.5 | H165: 164
A166: 165 | E166: 83 | H166: 165
A167: 166 | E167: 83.5 | H167: 166
A168: 167 | E168: 84 | H168: 167
A169: 168 | E169: 84.5 | H169: 168
A170: 169 | E170: 85 | H170: 169
A171: 170 | E171: 85.5 | H171: 170
A172: 171 | E172: 86 | H172: 171
A173: 172 | E173: 86.5 | H173: 172
A174: 173 | E174: 87 | H174: 173
A175: 174 | E175: 87.5 | H175: 174
A176: 175 | E176: 88 | H176: 175
A177: 176 | E177: 88.5 | H177: 176
A178: 177 | E178: 89 | H178: 177
A179: 178 | E179: 89.5 | H179: 178
A180: 179 | E180: 90 | H180: 179
A181: 180 | E181: 90.5 | H181: 180
A182: 181 | E182: 91 | H182: 181
A183: 182 | E183: 91.5 | H183: 182
A184: 183 | E184: 92 | H184: 183
A185: 184 | E185: 92.5 | H185: 184
A186: 185 | E186: 93 | H186: 185
A187: 186 | E187: 93.5 | H187: 186
A188: 187 | E188: 94 | H188: 187
A189: 188 | E189: 94.5 | H189: 188
A190: 189 | E190: 95 | H190: 189
A191: 190 | E191: 95.5 | H191: 190
A192: 191 | E192: 96 | H192: 191
A193: 192 | E193: 96.5 | H193: 192
A194: 193 | E194: 97 | H194: 193
A195: 194 | E195: 97.5 | H195: 194
A196: 195 | E196: 98 | H196: 195
A197: 196 | E197: 98.5 | H197: 196
A198: 197 | E198: 99 | H198: 197
A199: 198 | E199: 99.5 | H199: 198
A200: 199 | E200: 100 | H200: 199
... 2801 more rows
